bitfinex-derivatives/quotes_ETHF0:USTF0_20240831
["timestamp","ask_amount","ask_price","bid_price","bid_amount"]
[1725136154109,9.74305397,2501.0,2500.9,1.1093]
[1725136154607,6.53525397,2501.0,2500.9,1.1093]
[1725136154810,9.74305397,2501.0,2500.9,1.1093]
[1725136155310,13.74145397,2501.0,2500.9,1.1093]
[1725136155612,6.53525397,2501.0,2500.9,1.1093]
[1725136155910,9.74305397,2501.0,2500.9,1.1093]
[1725136156608,6.53525397,2501.0,2500.9,1.1093]
[1725136156812,9.74305397,2501.0,2500.9,1.1093]
[1725136157403,9.50316397,2501.0,2500.9,1.1093]
[1725136157604,7.77079333,2501.0,2500.9,5.1077]
[1725136157806,1.44,2501.2,2500.9,11.1077]
[1725136158007,1.44,2501.2,2500.9,1.1093]
[1725136158207,1.44,2501.2,2501.0,3.9984]
[1725136158506,1.44,2501.2,2501.1,0.23988]
[1725136158705,4.63583313,2501.1,2500.9,1.1093]
[1725136158902,1.44,2501.0,2500.9,1.1093]
[1725136159708,1.44,2501.0,2500.9,5.3476]
[1725136160408,1.44,2501.0,2500.9,5.1077]
[1725136162413,1.44,2501.0,2500.9,1.1093]
[1725136164308,1.67989,2501.0,2500.9,1.1093]
[1725136164509,1.44,2501.0,2500.9,1.1093]
[1725136168715,3.9598,2501.2,2500.9,5.1077]
[1725136168716,3.44767,2501.2,2500.9,5.1077]
[1725136168921,1.44,2501.1,2500.9,1.1093]
[1725136169222,5.98575577,2501.1,2500.9,1.1093]
[1725136169412,5.98575577,2501.1,2500.9,5.1077]
[1725136170319,5.98575577,2501.1,2500.9,1.1093]
[1725136170705,5.98575577,2501.1,2500.9,2.15322053]
[1725136171114,6.22563577,2501.1,2500.9,2.15322053]
[1725136171320,6.22563577,2501.1,2500.9,1.1093]
[1725136171619,6.22563577,2501.1,2500.9,2.15322053]
[1725136172809,0.23989,2501.0,2500.9,2.15322053]
[1725136173006,5.98575577,2501.1,2500.9,2.15322053]
[1725136173211,6.22564577,2501.1,2500.9,2.15322053]
[1725136174119,9.43344577,2501.1,2500.9,2.15322053]
[1725136174320,0.62429,2501.0,2500.9,1.04392053]
[1725136174515,0.2399,2500.9,2500.8,1.04392053]
[1725136174721,2.0521,2500.9,2500.7,1.40692437]
[1725136174916,6.51417512,2500.9,2500.7,0.36300384]
[1725136175819,6.51417512,2500.9,2500.7,1.40692437]
[1725136178213,9.72197512,2500.9,2500.7,1.40692437]
[1725136178418,7.66987512,2500.9,2500.7,1.40692437]
[1725136178622,1.44,2500.8,2500.7,1.40692437]
[1725136179015,5.99107704,2500.8,2500.7,1.40692437]
[1725136179618,5.99107704,2500.8,2500.7,5.40612437]
[1725136179823,1.44,2500.8,2500.7,5.40612437]
[1725136185317,1.44,2500.8,2500.7,7.40614836]
[1725136185523,1.44,2500.8,2500.7,5.40612437]
[1725136186426,1.44,2500.8,2500.7,7.64606847]
[1725136186616,1.44,2500.8,2500.7,8.16927805]
[1725136187016,1.44,2500.8,2500.7,7.92935805]
[1725136191228,1.44,2500.8,2500.7,7.94385805]
[1725136192034,3.2078,2501.0,2500.9,0.2399]
[1725136192225,3.2078,2501.0,2500.9,3.80778468]
[1725136192423,3.2078,2501.0,2500.9,7.80618468]
[1725136192628,3.2078,2501.0,2500.9,8.19720214]
[1725136192927,3.2078,2501.0,2500.9,8.55040214]
[1725136194128,3.2078,2501.0,2500.9,8.55035199]
[1725136194527,3.2078,2501.0,2500.9,8.15933453]
[1725136195631,1.44,2501.1,2501.0,0.23989]
[1725136195829,4.6478,2501.1,2501.0,3.66724574]
[1725136196030,4.6478,2501.1,2501.0,8.04694574]
[1725136196236,1.44,2501.1,2501.0,8.04694574]
[1725136196437,4.6478,2501.1,2501.0,8.04694574]
[1725136197037,1.44,2501.1,2501.0,8.04694574]
[1725136197240,4.6478,2501.1,2501.0,6.04718191]
[1725136197441,4.6478,2501.1,2501.0,8.046945]
[1725136198442,4.6478,2501.1,2501.0,7.00185309]
[1725136199031,4.6478,2501.1,2501.0,8.04731094]
[1725136199539,3.2078,2501.1,2501.0,8.56992379]
[1725136200341,3.2078,2501.4,2501.1,0.23988]
[1725136200531,1.44,2501.6,2501.3,1.5672731]
[1725136200840,1.44,2501.6,2501.5,1.04463988]
[1725136201135,1.44,2501.6,2501.5,3.04440297]
[1725136201438,1.67983,2501.6,2501.5,1.04463988]
[1725136201631,0.23984,2501.5,2501.3,1.04463988]
[1725136201844,2.43584,2501.5,2501.3,1.04463988]
[1725136202139,4.43124468,2501.4,2501.2,1.43073988]
[1725136202443,1.44,2501.3,2501.2,1.04463988]
[1725136202646,1.44,2501.3,2501.2,1.43073988]
[1725136203137,1.44,2501.3,2501.2,0.3861]
[1725136203442,1.44,2501.3,2501.2,1.43073988]
[1725136203944,1.44,2501.3,2501.1,1.80073988]
[1725136204144,0.3796,2501.2,2501.1,1.80073988]
[1725136207044,4.22658151,2501.2,2501.0,1.04463988]
[1725136207338,1.44,2501.3,2501.1,4.17722359]
[1725136207541,1.44,2501.3,2501.1,2.17753988]
[1725136209342,1.67986,2501.3,2501.1,2.17753988]
[1725136210640,1.44,2501.3,2501.1,2.17753988]
[1725136214442,3.9553,2501.5,2501.2,0.23986]
[1725136214748,1.44,2501.4,2501.3,0.23986]
[1725136215044,1.44,2501.4,2501.3,1.28449988]
[1725136215246,1.44,2501.4,2501.3,5.28209988]
[1725136218551,1.44,2501.4,2501.3,4.23746]
[1725136226251,1.44,2501.4,2501.3,5.28209988]
[1725136228057,1.44,2501.6,2501.3,5.04223988]
[1725136228347,1.44,2501.6,2501.5,0.23984]
[1725136228752,1.44,2501.6,2501.5,0.96774]
[1725136228951,0.00600384,2501.7,2501.6,0.23983]
[1725136229155,0.00600384,2501.7,2501.6,8.48986988]
[1725136229359,0.00600384,2501.7,2501.6,5.28206988]
[1725136232159,0.00600384,2501.7,2501.6,6.23659965]
[1725136232555,0.00600384,2501.7,2501.6,7.80355947]
[1725136232758,0.00600384,2501.7,2501.6,6.23659965]
[1725136233262,0.00600384,2501.7,2501.6,7.80355947]
[1725136240769,0.00600384,2501.7,2501.6,6.23659965]
[1725136240955,0.00600384,2501.7,2501.6,7.80355947]
[1725136241464,0.00600384,2501.7,2501.6,13.80355947]
[1725136244066,0.00600384,2501.7,2501.6,13.8034091]
[1725136244272,0.00600384,2501.7,2501.6,15.83514903]
[1725136244567,0.00600384,2501.7,2501.6,16.22602812]
[1725136244970,0.00600384,2501.7,2501.6,13.01822812]
[1725136245168,0.00600384,2501.7,2501.6,18.3115546]
[1725136245366,0.00600384,2501.7,2501.6,18.3260546]
[1725136245670,0.00600384,2501.7,2501.6,16.24052812]
[1725136245866,0.00600384,2501.7,2501.6,16.24049476]
[1725136246671,0.00600384,2501.7,2501.6,13.03269476]
[1725136247468,0.00600384,2501.7,2501.6,12.64179501]
[1725136247667,0.00600384,2501.7,2501.6,12.64179581]
[1725136247863,0.00600384,2501.7,2501.6,15.84959581]
[1725136248764,0.00177772,2501.7,2501.6,15.84959581]
[1725136249674,0.00177772,2501.7,2501.6,16.44917581]
[1725136250065,0.00177772,2501.7,2501.6,18.53470229]
[1725136250872,0.00177772,2501.7,2501.6,18.53463995]
[1725136251092,0.00177772,2501.7,2501.6,18.14376006]
[1725136251574,0.00177772,2501.7,2501.6,18.53463595]
[1725136252074,0.00177772,2501.7,2501.6,15.32683595]
[1725136252271,0.00177772,2501.7,2501.6,18.53463595]
[1725136254568,0.00177772,2501.7,2501.6,15.3268396]
[1725136254872,0.00177772,2501.7,2501.6,18.5346396]
[1725136255579,0.00177772,2501.7,2501.6,18.53460877]
[1725136256976,0.00177772,2501.7,2501.6,22.53236741]
[1725136257274,0.00177772,2501.7,2501.6,20.44684093]
[1725136259279,0.00177772,2501.7,2501.6,16.44924093]
[1725136259577,0.00177772,2501.7,2501.6,17.06778234]
[1725136259979,0.00177772,2501.7,2501.6,16.44924093]
[1725136260175,0.00177772,2501.7,2501.6,17.06777659]
[1725136260571,0.00078961,2501.7,2501.6,17.06777659]
[1725136260783,0.00078961,2501.7,2501.6,16.46819659]
[1725136261075,0.00078961,2501.7,2501.6,7.02570335]
[1725136261472,0.00078961,2501.7,2501.6,5.85196486]
[1725136261876,0.00078961,2501.7,2501.6,7.02584646]
[1725136262277,0.00078961,2501.7,2501.6,7.01134646]
[1725136262990,0.00078961,2501.7,2501.6,5.83748511]
[1725136263406,0.00078961,2501.7,2501.6,5.44652275]
[1725136263691,0.00078961,2501.7,2501.6,5.83748172]
[1725136263985,0.00078961,2501.7,2501.6,7.92345269]
[1725136264777,0.00078961,2501.7,2501.6,7.40292024]
[1725136264981,0.00078961,2501.7,2501.6,5.8376154]
[1725136265383,0.38658961,2501.7,2501.6,5.8376154]
[1725136265775,0.38658961,2501.7,2501.6,7.68362269]
[1725136265979,4.38418961,2501.7,2501.6,6.77236963]
[1725136266178,4.38418961,2501.7,2501.6,4.25158887]
[1725136268085,4.38418961,2501.7,2501.6,6.49066767]
[1725136268086,0.38658961,2501.7,2501.6,6.49066767]
[1725136268280,0.00078961,2501.7,2501.6,13.20453277]
[1725136268581,0.00078961,2501.7,2501.6,13.72482686]
[1725136268781,0.00078961,2501.7,2501.6,13.72459168]
[1725136269503,0.00078961,2501.7,2501.6,17.72261605]
[1725136269976,0.00078961,2501.7,2501.6,17.33160528]
[1725136270182,0.00078961,2501.7,2501.6,13.72460212]
[1725136270376,0.00078961,2501.7,2501.6,17.72267169]
[1725136270589,0.00078961,2501.7,2501.6,14.51487169]
[1725136272281,0.00078961,2501.7,2501.6,11.13602413]
[1725136272682,0.00078961,2501.7,2501.6,9.05018684]
[1725136273489,0.00078961,2501.7,2501.6,9.05018638]
[1725136273689,0.00078961,2501.7,2501.6,9.0502078]
[1725136274488,0.00078961,2501.7,2501.6,11.6571159]
[1725136276791,0.00078961,2501.7,2501.6,11.6571627]
[1725136278385,0.00078961,2501.7,2501.6,9.0502546]
[1725136278602,0.00078961,2501.7,2501.6,9.41353925]
[1725136279191,0.00078961,2501.7,2501.6,13.41113925]
[1725136279597,0.00078961,2501.7,2501.6,25.40792287]
[1725136279895,0.00078961,2501.7,2501.6,28.53621259]
[1725136280094,0.00078961,2501.7,2501.6,22.53621259]
[1725136280294,0.00078961,2501.7,2501.6,21.5263926]
[1725136280489,0.00078961,2501.7,2501.6,22.53580794]
[1725136281599,0.00078961,2501.7,2501.6,19.40751822]
[1725136283399,0.00078961,2501.7,2501.6,22.61531822]
[1725136283600,0.00078961,2501.7,2501.6,22.61554969]
[1725136283999,0.00078961,2501.7,2501.6,22.6155971]
[1725136284804,0.00078961,2501.7,2501.6,22.61560059]
[1725136286796,0.00078961,2501.7,2501.6,19.40780059]
[1725136287100,0.00078961,2501.7,2501.6,19.40779305]
[1725136287299,0.00078961,2501.7,2501.6,22.61559305]
[1725136287995,0.00078961,2501.7,2501.6,25.74388277]
[1725136288197,0.00078961,2501.7,2501.6,25.74336738]
[1725136288706,3.2078,2502.6,2502.2,0.23976]
[1725136288904,0.7195,2502.8,2502.5,1.80719893]
[1725136289101,0.3717,2502.7,2502.6,3.04343997]
[1725136289411,10.23984977,2502.7,2502.6,1.04461535]
[1725136289604,0.23974,2502.5,2502.4,1.56745893]
[1725136289805,0.23974,2502.5,2502.4,2.38946061]
[1725136290001,1.67974,2502.6,2502.4,3.95603493]
[1725136290308,1.67974,2502.6,2502.5,1.04442405]
[1725136290709,5.67574,2502.6,2502.5,1.04442405]
[1725136291104,0.23974,2502.5,2502.4,1.04442405]
[1725136291407,0.23974,2502.5,2502.3,1.56657432]
[1725136291408,5.436,2502.6,2502.3,1.04437039]
[1725136291707,1.0846,2502.4,2502.3,1.04440028]
[1725136291902,1.0846,2502.4,2502.3,3.56529169]
[1725136292109,1.0846,2502.4,2502.3,1.99871737]
[1725136292405,1.0846,2502.4,2502.3,3.04303799]
[1725136292604,1.0846,2502.4,2502.3,1.99871737]
[1725136293002,1.0846,2502.4,2502.3,1.99872361]
[1725136293404,1.0846,2502.4,2502.3,3.04292985]
[1725136293711,1.0846,2502.4,2502.3,3.04292659]
[1725136293909,1.0846,2502.4,2502.3,1.99872361]
[1725136294114,1.0846,2502.4,2502.3,3.04292302]
[1725136294314,1.0846,2502.4,2502.3,3.56529793]
[1725136294614,1.0846,2502.4,2502.3,3.04285682]
[1725136295803,1.0846,2502.4,2502.3,1.04413321]
[1725136295804,1.32435,2502.4,2502.3,1.04413321]
[1725136296312,1.32435,2502.4,2502.3,3.04288059]
[1725136296512,1.32435,2502.4,2502.3,3.04286562]
[1725136296714,5.32035,2502.4,2502.3,1.04413321]
[1725136297912,5.32035,2502.4,2502.2,1.05013705]
[1725136298116,1.32435,2502.4,2502.3,0.0145]
[1725136298606,5.32035,2502.4,2502.3,0.0145]
[1725136302609,5.32035,2502.4,2502.3,1.05863321]
[1725136302914,5.32035,2502.4,2502.3,0.0145]
[1725136307616,6.76035,2502.4,2502.3,0.0145]
[1725136307821,7.35974,2502.4,2502.3,0.0145]
[1725136309618,5.32035,2502.4,2502.3,0.0145]
[1725136314030,3.996,2502.4,2502.3,0.0145]
[1725136314224,4.3665,2502.4,2502.3,0.0145]
[1725136314537,4.3665,2502.4,2502.3,1.05863321]
[1725136315228,4.3665,2502.4,2502.3,1.04413321]
[1725136316027,3.45353384,2502.7,2502.3,3.80504749]
[1725136316218,3.45353384,2502.7,2502.5,1.0444077]
[1725136316642,3.45353384,2502.7,2502.6,0.3585]
[1725136316829,3.21380384,2502.7,2502.6,0.3585]
[1725136317128,4.89352384,2502.7,2502.5,1.0444077]
[1725136319130,1.68572384,2502.7,2502.5,1.0444077]
[1725136320520,1.67973,2502.6,2502.5,1.0444077]
[1725136321330,0.23974,2502.5,2502.4,0.3585]
[1725136321527,0.23974,2502.5,2502.4,3.92373419]
[1725136321729,0.23974,2502.5,2502.4,2.35715987]
[1725136321923,0.23974,2502.5,2502.4,3.40185942]
[1725136322521,0.23974,2502.5,2502.4,3.92373419]
[1725136323334,0.23974,2502.5,2502.4,2.35715987]
[1725136323631,0.23974,2502.5,2502.4,3.92373419]
[1725136324731,4.23574,2502.5,2502.4,3.56523419]
[1725136325031,4.60454,2502.5,2502.4,1.99865987]
[1725136325231,4.60454,2502.5,2502.4,3.04378375]
[1725136325536,4.60454,2502.5,2502.4,1.04512388]
[1725136332424,4.90089063,2502.5,2502.4,1.04512388]
[1725136332627,0.23975,2502.4,2502.3,1.04512388]
[1725136332839,2.39685,2502.4,2502.3,3.04397272]
[1725136333028,6.39285,2502.4,2502.3,3.04397272]
[1725136335340,6.39285,2502.4,2502.3,1.99884884]
[1725136335541,6.39285,2502.4,2502.3,3.04458071]
[1725136335731,6.39285,2502.4,2502.3,1.04573187]
[1725136336131,6.39285,2502.4,2502.3,3.04455095]
[1725136337732,6.39285,2502.4,2502.3,1.04573187]
[1725136338629,6.03685,2502.4,2502.3,1.04573187]
[1725136338833,5.436,2502.4,2502.3,3.56538625]
[1725136339033,0.24573384,2502.7,2502.3,4.56763102]
[1725136339240,0.24573384,2502.7,2502.5,1.04557026]
[1725136340133,1.44,2502.6,2502.5,1.04557026]
[1725136341243,1.44,2502.6,2502.5,3.0442153]
[1725136343946,1.44,2502.6,2502.5,1.04557026]
[1725136344146,1.44,2502.6,2502.5,3.04422663]
[1725136344442,1.44,2502.6,2502.5,1.04557026]
[1725136344642,1.44,2502.6,2502.5,3.56521772]
[1725136345341,1.44,2502.6,2502.5,3.56516206]
[1725136347545,1.44,2502.6,2502.5,3.80490206]
[1725136348544,1.44,2502.6,2502.5,3.56516206]
[1725136350144,1.44,2502.6,2502.5,1.56657432]
[1725136350350,1.44,2502.6,2502.5,3.56514807]
[1725136355142,1.44,2502.6,2502.5,3.56517627]
[1725136357054,0.00600384,2502.7,2502.5,2.38991665]
[1725136357258,0.00600384,2502.7,2502.6,3.41853163]
[1725136358955,0.00600384,2502.7,2502.6,3.94157819]
[1725136359351,0.00600384,2502.7,2502.6,2.37240195]
[1725136359551,0.00600384,2502.7,2502.6,3.94157819]
[1725136360052,0.00600384,2502.7,2502.6,3.94154946]
[1725136360254,0.00600384,2502.7,2502.6,2.37237322]
[1725136361754,0.00600384,2502.7,2502.6,3.94154946]
[1725136362149,0.00600384,2502.7,2502.6,2.37237322]
[1725136362862,0.37830384,2502.7,2502.6,2.37237322]
[1725136363860,0.37830384,2502.7,2502.6,3.94154946]
[1725136364260,0.37830384,2502.7,2502.6,3.94152153]
[1725136364456,0.37830384,2502.7,2502.6,1.99854529]
[1725136364755,0.00600384,2502.7,2502.6,3.04463233]
[1725136365062,0.24572384,2502.7,2502.6,1.04605734]
[1725136365858,0.00600384,2502.7,2502.6,1.04605734]
[1725136366359,0.00600384,2502.7,2502.6,3.04463439]
[1725136367366,0.24572384,2502.7,2502.6,3.04463439]
[1725136367562,0.24572384,2502.7,2502.6,1.04605734]
[1725136367766,0.24572384,2502.7,2502.6,3.04463476]
[1725136368265,0.24572384,2502.7,2502.6,1.04605734]
[1725136368666,0.24572384,2502.7,2502.6,3.04463103]
[1725136369057,0.24572384,2502.7,2502.6,1.04605734]
[1725136369360,0.00600384,2502.7,2502.6,1.04605734]
[1725136369965,0.00600384,2502.7,2502.6,3.04463256]
[1725136370368,0.00600384,2502.7,2502.6,1.04605734]
[1725136370963,0.00600384,2502.7,2502.6,3.04466385]
[1725136371264,0.00600384,2502.7,2502.6,1.04605734]
[1725136374971,0.00600384,2502.7,2502.6,3.04462491]
[1725136375268,0.00600384,2502.7,2502.6,3.56774381]
[1725136378270,0.00600384,2502.7,2502.6,3.95888112]
[1725136378482,0.00600384,2502.7,2502.6,3.56774381]
[1725136378667,0.00600384,2502.7,2502.6,3.95888178]
[1725136379377,0.00600384,2502.7,2502.6,4.19861178]
[1725136379578,0.00600384,2502.7,2502.6,4.19778122]
[1725136379760,0.00600384,2502.7,2502.6,4.1978141]
[1725136379967,0.00600384,2502.7,2502.6,2.62932149]
[1725136381070,0.00600384,2502.7,2502.6,3.80678831]
[1725136381373,0.00600384,2502.7,2502.6,2.62932375]
[1725136383063,0.00600384,2502.7,2502.6,2.6292919]
[1725136384181,0.00600384,2502.7,2502.6,4.71923714]
[1725136387675,0.00600384,2502.7,2502.6,4.7191217]
[1725136387975,0.00600384,2502.7,2502.6,4.71913236]
[1725136391080,0.00600384,2502.7,2502.6,4.71911286]
[1725136392882,0.00600384,2502.7,2502.6,4.71911708]
[1725136394279,0.00600384,2502.7,2502.6,4.32811179]
[1725136394481,0.00600384,2502.7,2502.6,5.11011042]
[1725136396381,0.00600384,2502.7,2502.6,3.02016518]
[1725136396784,0.00600384,2502.7,2502.6,5.11011042]
[1725136396986,0.00600384,2502.7,2502.6,4.71911362]
[1725136397885,0.00600384,2502.7,2502.6,4.71907811]
[1725136398688,0.00600384,2502.7,2502.6,2.62913287]
[1725136398875,0.00600384,2502.7,2502.6,3.02013797]
[1725136399078,0.00600384,2502.7,2502.6,5.11008321]
[1725136401884,0.00600384,2502.7,2502.6,4.71907811]
[1725136402093,0.00600384,2502.7,2502.6,4.32807628]
[1725136404293,0.00600384,2502.7,2502.6,4.71907425]
[1725136404496,0.00600384,2502.7,2502.6,4.73357425]
[1725136406695,0.36090384,2502.7,2502.6,4.73357425]
[1725136407995,0.36090384,2502.7,2502.6,4.73361448]
[1725136409800,0.36090384,2502.7,2502.6,4.73378477]
[1725136411697,0.36090384,2502.7,2502.6,8.73060466]
[1725136411893,0.36090384,2502.7,2502.6,4.73378477]
[1725136413093,5.79690384,2502.7,2502.6,2.01294127]
[1725136413296,5.79690384,2502.7,2502.5,2.08994524]
[1725136413297,3.996,2502.6,2502.3,1.56982781]
[1725136413497,3.996,2502.6,2502.2,5.16611476]
[1725136413498,0.23976,2502.3,2502.2,5.16611476]
[1725136413804,4.55110594,2502.3,2502.2,4.11900384]
[1725136414104,15.30620594,2502.3,2502.2,4.11900384]
[1725136415703,18.51400594,2502.3,2502.2,4.11900384]
[1725136416503,18.90150594,2502.3,2502.2,4.11900384]
[1725136417106,18.90150594,2502.3,2502.2,0.00600384]
[1725136417508,12.90150594,2502.3,2502.2,0.00600384]
[1725136420811,14.34150594,2502.3,2502.2,0.00600384]
[1725136421505,20.34150594,2502.3,2502.2,0.00600384]
[1725136421810,20.94091594,2502.3,2502.2,0.00600384]
[1725136422007,14.94091594,2502.3,2502.2,0.00600384]
[1725136425311,14.34150594,2502.3,2502.2,0.00600384]
[1725136426718,11.13370594,2502.3,2502.2,0.00600384]
[1725136427216,14.34150594,2502.3,2502.2,0.00600384]
[1725136427404,11.13370594,2502.3,2502.2,0.00600384]
[1725136427716,14.34150594,2502.3,2502.2,0.00600384]
[1725136428716,11.13370594,2502.3,2502.2,0.00600384]
[1725136428904,14.34150594,2502.3,2502.2,0.00600384]
[1725136433519,13.96060594,2502.3,2502.2,0.00600384]
[1725136436520,10.75280594,2502.3,2502.2,0.00600384]
[1725136436913,13.96060594,2502.3,2502.2,0.00600384]
[1725136438413,10.75280594,2502.3,2502.2,0.00600384]
[1725136438621,13.96060594,2502.3,2502.2,0.00600384]
[1725136439622,10.75280594,2502.3,2502.2,0.00600384]
[1725136439814,13.96060594,2502.3,2502.2,0.00600384]
[1725136441214,10.75280594,2502.3,2502.2,0.00600384]
[1725136441418,13.96060594,2502.3,2502.2,0.00600384]
[1725136441619,13.19570594,2502.3,2502.2,0.00600384]
[1725136444025,9.98790594,2502.3,2502.2,0.00600384]
[1725136444215,13.19570594,2502.3,2502.2,0.00600384]
[1725136447129,0.23981,2501.8,2501.7,0.3865]
[1725136447424,1.44,2501.9,2501.7,0.3865]
[1725136456434,1.44,2501.9,2501.7,1.43361092]
[1725136458234,1.6798,2501.9,2501.7,1.43361092]
[1725136458435,1.6798,2501.9,2501.8,1.99919766]
[1725136458436,1.44,2501.9,2501.8,1.99919766]
[1725136458733,1.44,2501.9,2501.8,3.0462236]
[1725136458930,1.44,2501.9,2501.8,1.99919766]
[1725136459138,1.44,2501.9,2501.8,3.56902547]
[1725136459323,1.44,2501.9,2501.8,3.04622672]
[1725136460029,1.44,2501.9,2501.8,3.0462355]
[1725136462441,1.44,2501.9,2501.8,3.04601749]
[1725136463138,1.44,2501.9,2501.8,1.99920644]
[1725136463537,1.44,2501.9,2501.8,3.04605889]
[1725136464334,1.44,2501.9,2501.8,1.99920644]
[1725136464834,1.6798,2501.9,2501.8,1.99920644]
[1725136465039,1.6798,2501.9,2501.8,3.04619472]
[1725136465336,1.6798,2501.9,2501.8,3.04619118]
[1725136465933,1.6798,2501.9,2501.8,1.04694412]
[1725136466941,0.23981,2501.8,2501.7,1.44794412]
[1725136467138,0.23981,2501.8,2501.7,2.40033104]
[1725136467533,0.23981,2501.8,2501.7,3.44737467]
[1725136467743,0.23981,2501.8,2501.7,2.40033104]
[1725136467942,1.67981,2501.8,2501.7,2.40033104]
[1725136468543,1.44,2501.8,2501.7,3.4473201]
[1725136468743,1.44,2501.8,2501.7,2.40033104]
[1725136469043,1.67981,2501.8,2501.7,2.40033104]
[1725136469240,1.67981,2501.8,2501.7,3.44730556]
[1725136469436,1.67981,2501.8,2501.7,2.40033104]
[1725136469647,1.67981,2501.8,2501.7,3.44727829]
[1725136469853,1.67981,2501.8,2501.7,3.44726452]
[1725136470548,1.44,2501.8,2501.7,3.44726452]
[1725136473356,1.44,2501.8,2501.7,1.44794725]
[1725136475656,10.04414014,2501.8,2501.7,0.0145]
[1725136475848,10.64367014,2501.8,2501.7,0.0145]
[1725136476249,0.23983,2501.6,2501.5,0.00600384]
[1725136476450,4.88763,2501.6,2501.5,0.00600384]
[1725136476650,9.26282895,2501.6,2501.5,0.00600384]
[1725136477152,13.26042895,2501.6,2501.5,0.00600384]
[1725136477352,13.26042895,2501.6,2501.2,1.04694725]
[1725136477353,0.23986,2501.3,2501.2,1.04694725]
[1725136477553,3.44766,2501.3,2501.1,1.04694725]
[1725136477750,1.8208,2501.2,2501.0,1.42514725]
[1725136478054,1.8208,2501.2,2501.1,1.04694725]
[1725136478246,1.44,2501.2,2501.1,1.04694725]
[1725136478642,1.44,2501.2,2501.0,1.42514725]
[1725136479663,1.44,2501.2,2501.0,5.42354725]
[1725136481350,1.67987,2501.2,2501.0,5.42354725]
[1725136481554,1.44,2501.2,2501.0,5.42354725]
[1725136483253,1.44,2501.2,2501.0,0.3782]
[1725136483458,1.44,2501.2,2501.0,1.42514725]
[1725136483662,1.44,2501.2,2501.0,0.3782]
[1725136484256,1.44,2501.2,2501.0,0.61809]
[1725136484458,3.2078,2501.3,2501.2,0.23987]
[1725136484657,1.44600384,2501.4,2501.3,0.23986]
[1725136486658,1.44600384,2501.4,2501.3,1.36816]
[1725136489367,0.00600384,2501.4,2501.3,11.36576]
[1725136489560,1.44,2502.0,2501.9,0.2398]
[1725136489758,1.44,2502.0,2501.7,0.23982]
[1725136489969,3.80288,2502.1,2501.8,1.1448]
[1725136490171,1.44,2501.9,2501.8,1.38461]
[1725136491058,1.44,2501.9,2501.8,1.1448]
[1725136493573,1.44,2501.9,2501.8,1.38461]
[1725136493775,1.44,2502.0,2501.9,0.2398]
[1725136494164,0.00600384,2502.1,2502.0,0.23979]
[1725136494564,0.00600384,2502.1,2502.0,4.23659]
[1725136495266,0.00600384,2502.1,2502.0,3.9968]
[1725136498565,0.00600384,2502.1,2502.0,4.23659]
[1725136502966,0.00600384,2502.1,2502.0,5.2809843]
[1725136503680,0.00600384,2502.1,2502.0,4.23659]
[1725136503884,0.00600384,2502.1,2502.0,5.2809843]
[1725136504274,0.00600384,2502.1,2502.0,4.23659]
[1725136506076,0.00600384,2502.1,2502.0,5.2809843]
[1725136506474,0.00600384,2502.1,2502.0,13.27967854]
[1725136507278,0.00600384,2502.1,2502.0,11.2809843]
[1725136511187,0.00600384,2502.1,2502.0,5.2809843]
[1725136511393,0.00600384,2502.1,2502.0,11.2809843]
[1725136511981,0.00600384,2502.1,2502.0,10.23659]
[1725136513075,0.00600384,2502.1,2502.0,4.23659]
[1725136516294,0.00600384,2502.1,2502.0,7.44439]
[1725136516486,0.00600384,2502.1,2502.0,7.45889]
[1725136518685,0.00600384,2502.1,2502.0,4.25109]
[1725136519186,0.00600384,2502.1,2502.0,7.45889]
[1725136519589,0.00600384,2502.1,2502.0,4.25109]
[1725136519787,0.00600384,2502.1,2502.0,7.45889]
[1725136520488,0.00600384,2502.1,2502.0,0.25429]
[1725136520684,0.00600384,2502.1,2502.0,0.0145]
[1725136520886,0.24578384,2502.1,2502.0,0.0145]
[1725136525488,0.00600384,2502.1,2502.0,0.0145]
[1725136533788,0.00600384,2502.1,2501.9,1.2841943]
[1725136533991,1.44,2502.0,2501.9,1.0443943]
[1725136534191,1.8065,2502.0,2501.9,1.0443943]
[1725136534394,2.188,2502.0,2501.9,1.0443943]
[1725136534593,2.188,2502.0,2501.9,3.0434524]
[1725136536699,2.42779,2502.0,2501.9,3.0434524]
[1725136536906,2.42779,2502.0,2501.9,3.04341402]
[1725136537599,2.42779,2502.0,2501.9,3.04347376]
[1725136539100,2.42779,2502.0,2501.9,1.0443943]
[1725136539485,1.8215,2502.0,2501.9,1.4099943]
[1725136540099,2.06129,2502.0,2501.9,1.4099943]
[1725136540397,2.06129,2502.0,2501.9,3.40909403]
[1725136540601,1.8215,2502.0,2501.9,3.40909403]
[1725136540903,1.8215,2502.0,2501.9,1.4099943]
[1725136542193,0.00600384,2502.1,2501.9,3.4090579]
[1725136542403,0.00600384,2502.1,2502.0,0.7209]
[1725136543804,0.00600384,2502.1,2502.0,2.0050843]
[1725136546400,0.00600384,2502.1,2502.0,1.7652943]
[1725136547602,0.00600384,2502.1,2502.0,2.0050843]
[1725136548694,0.00600384,2502.1,2502.0,4.00399753]
[1725136549304,0.00600384,2502.1,2502.0,2.95960323]
[1725136549998,0.00600384,2502.1,2502.0,4.52619469]
[1725136551501,0.00600384,2502.1,2502.0,4.52619125]
[1725136556406,0.00600384,2502.1,2502.0,4.52618823]
[1725136557105,0.00600384,2502.1,2502.0,4.28639823]
[1725136558301,0.00600384,2502.1,2502.0,4.6779646]
[1725136558499,0.00600384,2502.1,2502.0,4.28639823]
[1725136558902,0.00600384,2502.1,2502.0,4.67796466]
[1725136559304,0.00600384,2502.1,2502.0,4.28639823]
[1725136560308,0.00600384,2502.1,2502.0,4.67797491]
[1725136560496,0.00600384,2502.1,2502.0,4.28639823]
[1725136560698,0.00600384,2502.1,2502.0,2.28749146]
[1725136560895,0.24578384,2502.1,2502.0,3.92765913]
[1725136561099,0.62588384,2502.1,2502.0,3.56555913]
[1725136561301,5.00138384,2502.1,2502.0,3.56555913]
[1725136561600,1.00458384,2502.1,2502.0,3.04587852]
[1725136561807,1.00458384,2502.1,2502.0,1.04691085]
[1725136562108,1.00458384,2502.1,2502.0,3.04597385]
[1725136563512,1.00458384,2502.1,2502.0,3.56565446]
[1725136563712,1.00458384,2502.1,2502.0,1.999063]
[1725136563913,1.00458384,2502.1,2502.0,3.04626815]
[1725136564307,1.00458384,2502.1,2502.0,3.56565446]
[1725136564609,1.00458384,2502.1,2502.0,1.999063]